bitfinex/quotes_SOLUSD_20250217
["timestamp","ask_amount","ask_price","bid_price","bid_amount"]
[1739827807085,18.16406411,181.25,181.19,18.16406411]
[1739827807285,18.16406411,181.25,181.14,13.41184853]
[1739827807286,18.16406411,181.27,181.21,18.16406411]
[1739827807589,11.5495,181.28,181.2,18.16406411]
[1739827807759,5.5154,181.31,181.2,18.16406411]
[1739827807956,18.16406411,181.26,181.16,5.5199]
[1739827808161,5.5154,181.31,181.19,18.16406411]
[1739827808373,18.16406411,181.25,181.19,18.16406411]
[1739827808582,28.98598935,181.26,181.2,28.98598935]
[1739827808792,28.98598935,181.23,181.15,0.82761358]
[1739827808955,28.98598935,181.23,181.13,20.0]
[1739827809158,28.98598935,181.23,181.17,28.98598935]
[1739827809358,28.98598935,181.25,181.19,28.98598935]
[1739827809582,28.98598935,181.26,181.2,28.98598935]
[1739827809784,28.98598935,181.24,181.18,28.98598935]
[1739827809957,28.98598935,181.23,181.17,28.98598935]
[1739827810281,28.98598935,181.22,181.16,28.98598935]
[1739827810483,28.98598935,181.21,181.15,28.98598935]
[1739827810788,28.98598935,181.19,181.13,28.98598935]
[1739827811084,6.3337,181.23,181.06,1.6452]
[1739827811085,28.98598935,181.16,181.06,1.6452]
[1739827811261,28.98598935,181.19,181.11,20.0]
[1739827811462,1.0,181.22,181.1,28.98598935]
[1739827811697,28.98598935,181.15,181.08,5.5221]
[1739827811895,28.98598935,181.14,181.08,28.98598935]
[1739827812206,1.0,181.2,181.06,5.5227]
[1739827812207,28.98598935,181.12,181.06,5.5227]
[1739827812368,28.98598935,181.13,181.07,28.98598935]
[1739827812984,28.98598935,181.13,181.06,34.50868935]
[1739827813287,28.98598935,181.13,181.07,28.98598935]
[1739827813589,28.98598935,181.09,181.03,34.50968935]
[1739827813764,28.98598935,181.07,181.01,28.98598935]
[1739827813964,28.98598935,181.03,180.97,34.51148935]
[1739827814272,6.218,181.1,180.97,5.5255]
[1739827814273,28.98598935,181.02,180.97,5.5255]
[1739827814462,28.98598935,181.02,180.95,5.5261]
[1739827814663,28.98598935,181.02,180.96,28.98598935]
[1739827814864,1.0,181.07,180.93,5.5267]
[1739827815178,28.98598935,180.99,180.93,28.98598935]
[1739827815494,125.61124324,180.98,180.92,28.98598935]
[1739827815665,96.62525389,180.98,180.93,28.98598935]
[1739827816274,28.98598935,180.97,180.92,0.063]
[1739827816470,125.61124324,180.98,180.92,34.57608935]
[1739827816796,96.62525389,180.98,180.93,28.98598935]
[1739827817867,96.62525389,180.98,180.92,29.04898935]
[1739827818063,28.98598935,180.97,180.92,0.063]
[1739827818291,28.98598935,180.97,180.92,5.5902]
[1739827818486,28.98598935,180.96,180.92,0.063]
[1739827818697,96.62525389,180.98,180.92,0.063]
[1739827818698,28.98598935,180.94,180.92,0.063]
[1739827819681,28.98598935,180.93,180.92,0.063]
[1739827819884,28.98598935,180.95,180.92,0.063]
[1739827820474,28.98598935,180.94,180.92,0.063]
[1739827821168,96.62525389,180.98,180.92,0.063]
[1739827821387,96.62525389,180.98,180.93,28.98598935]
[1739827821673,96.62525389,180.98,180.94,28.98598935]
[1739827822079,96.62525389,180.98,180.93,28.98598935]
[1739827822704,96.62525389,180.98,180.92,29.04898935]
[1739827822890,28.98598935,180.97,180.92,0.063]
[1739827823071,28.98598935,180.94,180.92,0.063]
[1739827823268,28.98598935,180.93,180.92,0.063]
[1739827825105,43.39783788,180.93,180.92,0.063]
[1739827825277,42.39783788,180.93,180.92,0.063]
[1739827825610,43.39783788,180.93,180.92,0.063]
[1739827825775,44.39783788,180.93,180.92,0.0001]
[1739827825971,21.0,180.89,180.75,13.8307]
[1739827826178,28.98598935,180.84,180.78,28.98598935]
[1739827826379,28.98598935,180.85,180.78,28.98598935]
[1739827826581,1.0,180.92,180.79,20.0]
[1739827826779,4.62,180.91,180.76,20.1921728]
[1739827827003,1.0,180.92,180.85,28.98598935]
[1739827827313,47.92473788,180.93,180.86,28.98598935]
[1739827827490,47.92473788,180.93,180.76,20.1921728]
[1739827827491,28.98598935,180.91,180.85,28.98598935]
[1739827827677,28.98598935,180.88,180.82,28.98598935]
[1739827828003,28.98598935,180.87,180.81,28.98598935]
[1739827828495,28.98598935,180.89,180.82,28.98598935]
[1739827828698,28.98598935,180.9,180.83,28.98598935]
[1739827828902,28.98598935,180.91,180.84,28.98598935]
[1739827829278,28.98598935,180.91,180.85,28.98598935]
[1739827829998,28.98598935,180.89,180.83,28.98598935]
[1739827830198,28.98598935,180.9,180.83,28.98598935]
[1739827830383,28.98598935,180.91,180.84,28.98598935]
[1739827830581,28.98598935,180.9,180.84,28.98598935]
[1739827830986,28.98598935,180.89,180.82,28.98598935]
[1739827831196,28.98598935,180.9,180.83,28.98598935]
[1739827831503,96.62525389,180.89,180.83,28.98598935]
[1739827831698,96.62525389,180.89,180.82,28.98598935]
[1739827831903,28.98598935,180.87,180.8,34.51688935]
[1739827832100,28.98598935,180.85,180.79,28.98598935]
[1739827832610,96.62525389,180.89,180.79,28.98598935]
[1739827832611,28.98598935,180.88,180.81,28.98598935]
[1739827832907,125.61124324,180.89,180.82,28.98598935]
[1739827833300,131.13944324,180.89,180.82,34.51628935]
[1739827833485,125.61124324,180.89,180.82,34.51628935]
[1739827833685,28.98598935,180.88,180.81,28.98598935]
[1739827833893,28.98598935,180.87,180.8,28.98598935]
[1739827834101,28.98598935,180.86,180.78,34.51718935]
[1739827834299,28.98598935,180.88,180.81,28.98598935]
[1739827834506,28.98598935,180.88,180.82,28.98598935]
[1739827834689,131.13944324,180.89,180.82,28.98598935]
[1739827835002,131.13944324,180.89,180.81,28.98598935]
[1739827835209,96.62525389,180.89,180.83,28.98598935]
[1739827835795,131.13944324,180.89,180.82,28.98598935]
[1739827836111,28.98598935,180.88,180.81,28.98598935]
[1739827836498,28.98598935,180.87,180.8,28.98598935]
[1739827836898,28.98598935,180.88,180.8,28.98598935]
[1739827837400,34.51458935,180.88,180.8,34.51668935]
[1739827837591,34.51458935,180.88,180.81,28.98598935]
[1739827837791,28.98598935,180.87,180.8,28.98598935]
[1739827838109,28.98598935,180.87,180.79,28.98598935]
[1739827838439,28.98598935,180.87,180.76,5.5321]
[1739827838719,28.98598935,180.85,180.78,28.98598935]
[1739827838921,28.98598935,180.86,180.79,28.98598935]
[1739827839410,28.98598935,180.82,180.75,20.0]
[1739827839612,28.98598935,180.81,180.74,34.51878935]
[1739827839821,28.98598935,180.81,180.75,28.98598935]
[1739827840219,28.98598935,180.82,180.75,28.98598935]
[1739827840402,28.98598935,180.83,180.8,0.063]
[1739827840602,28.98598935,180.84,180.8,0.063]
[1739827840818,28.98598935,180.83,180.8,0.063]
[1739827841122,28.98598935,180.82,180.8,0.063]
[1739827841418,28.98598935,180.83,180.8,0.063]
[1739827841805,28.98598935,180.82,180.8,0.063]
[1739827843332,28.98598935,180.81,180.8,0.063]
[1739827843907,34.51658935,180.81,180.8,0.063]
[1739827847418,96.56225389,180.8,180.74,28.98598935]
[1739827847724,96.56225389,180.8,180.75,28.98598935]
[1739827848121,96.56225389,180.8,180.77,28.98598935]
[1739827848324,96.56225389,180.8,180.79,28.98598935]
[1739827848837,96.56225389,180.8,180.79,34.51718935]
[1739827850520,32.65725389,180.8,180.79,63.5031787]
[1739827850720,0.03,180.92,180.82,20.0]
[1739827850946,0.03,180.92,180.87,28.98598935]
[1739827851235,28.98598935,180.9,180.83,5.53]
[1739827851439,28.98598935,180.9,180.83,28.98598935]
[1739827851636,0.03,180.92,180.86,28.98598935]
[1739827851637,29.01598935,180.92,180.86,28.98598935]
[1739827851836,0.03,180.92,180.86,28.98598935]
[1739827852036,29.01598935,180.92,180.86,28.98598935]
[1739827852341,0.03,180.92,180.86,28.98598935]
[1739827852524,0.03,180.92,180.87,28.98598935]
[1739827852724,0.03,180.92,180.86,28.98598935]
[1739827852925,29.01598935,180.92,180.85,28.98598935]
[1739827853127,28.98598935,180.9,180.84,28.98598935]
[1739827853636,28.98598935,180.9,180.85,0.063]
[1739827854319,28.98598935,180.89,180.85,0.063]
[1739827854732,28.98598935,180.9,180.85,0.063]
[1739827855044,34.51368935,180.91,180.85,0.063]
[1739827855728,34.54328935,180.92,180.85,29.04898935]
[1739827855931,34.54328935,180.92,180.86,28.98598935]
[1739827856442,0.03,180.92,180.87,28.98598935]
[1739827857523,0.03,180.92,180.86,28.98598935]
[1739827858051,29.01598935,180.92,180.86,28.98598935]
[1739827858251,0.03,180.92,180.86,28.98598935]
[1739827858429,29.01598935,180.92,180.86,28.98598935]
[1739827858740,34.54338935,180.92,180.85,34.57838935]
[1739827859049,28.98598935,180.89,180.85,0.063]
[1739827859433,28.98598935,180.88,180.85,0.063]
[1739827859855,28.98598935,180.89,180.85,0.063]
[1739827860352,34.51398935,180.9,180.85,0.063]
[1739827860827,28.98598935,180.91,180.85,0.063]
[1739827861028,0.03,180.92,180.87,28.98598935]
[1739827861434,0.03,180.92,180.85,0.063]
[1739827861435,0.03,180.92,180.88,28.98598935]
[1739827861636,0.03,180.92,180.9,28.98598935]
[1739827862229,0.03,180.92,180.91,5.5276]
[1739827862545,0.03,180.92,180.91,34.51358935]
[1739827863639,0.0001,180.92,180.91,34.51358935]
[1739827866332,0.0001,180.92,180.89,28.98598935]
[1739827866528,0.0001,180.92,180.9,28.98598935]
[1739827866733,0.0001,180.92,180.91,28.98598935]
[1739827868438,0.0001,180.92,180.91,34.51358935]
[1739827869249,0.0001,180.92,180.91,5.5276]
[1739827869450,0.0001,180.92,180.91,34.51358935]
[1739827870559,0.0001,180.92,180.91,5.5276]
[1739827870746,0.0001,180.92,180.9,5.5278]
[1739827872160,0.0001,180.92,180.91,28.98598935]
[1739827873977,0.0001,180.92,180.9,28.98598935]
[1739827876461,0.0001,180.92,180.91,5.5276]
[1739827880549,0.0001,180.92,180.91,28.98598935]
[1739827882664,0.0001,180.92,180.91,23.70126764]
[1739827893877,6.2364,181.04,180.94,20.0]
[1739827894078,6.2364,181.04,180.99,18.17366764]
[1739827895146,6.2364,181.04,181.0,5.5248]
[1739827896260,6.2364,181.04,180.98,18.17366764]
[1739827896460,18.17366764,181.03,180.97,18.17366764]
[1739827896669,18.17366764,180.99,180.95,5.526]
[1739827896970,18.17366764,180.98,180.93,5.5267]
[1739827897152,18.17366764,180.99,180.93,23.70036764]
[1739827897769,18.17366764,180.97,180.91,23.70126764]
[1739827898968,18.17366764,180.98,180.92,18.17366764]
[1739827899371,18.20366764,180.99,180.93,18.17366764]
[1739827900273,18.20366764,180.99,180.94,5.5266]
[1739827901073,18.17366764,180.98,180.94,5.5266]
[1739827901474,18.17366764,180.97,180.92,5.5273]
[1739827901773,18.17366764,180.96,180.92,5.5273]
[1739827902150,18.17366764,180.96,180.91,0.063]
[1739827902349,18.17366764,180.97,180.91,23.76426764]
[1739827903456,18.17366764,180.96,180.91,0.063]
[1739827904173,5.5552,180.99,180.91,0.063]
[1739827904174,18.17366764,180.93,180.91,0.063]
[1739827905178,18.17366764,180.92,180.91,0.063]
[1739827906558,23.70096764,180.92,180.91,0.063]
[1739827906959,18.17366764,180.92,180.91,0.063]
[1739827907161,23.70096764,180.92,180.91,0.063]
[1739827907372,18.17366764,180.92,180.91,0.063]
[1739827907679,23.70096764,180.92,180.91,0.063]
[1739827908289,18.17366764,180.92,180.91,0.063]
[1739827908854,23.70096764,180.92,180.91,0.063]
[1739827909054,18.17366764,180.92,180.91,0.063]
[1739827910472,23.70096764,180.92,180.91,0.063]
[1739827910666,37.11281617,180.92,180.85,0.063]
[1739827910865,18.17366764,180.87,180.85,0.063]
[1739827912078,18.17366764,180.88,180.85,0.063]
[1739827917667,18.17366764,180.86,180.85,0.063]
[1739827918063,31.58551617,180.86,180.85,0.063]
[1739827918680,32.58551617,180.86,180.85,0.063]
[1739827918881,34.84165979,180.86,180.85,0.063]
[1739827919083,33.84165979,180.86,180.85,0.063]
[1739827919683,39.37075979,180.86,180.85,0.063]
[1739827921582,40.37075979,180.86,180.85,0.063]
[1739827921785,14.41184853,180.85,180.74,5.5328]
[1739827921982,18.17366764,180.81,180.75,18.17366764]
[1739827922287,18.17366764,180.81,180.76,18.17366764]
[1739827923489,18.17366764,180.81,180.75,18.17366764]
[1739827923676,18.17366764,180.81,180.74,23.70646764]
[1739827923887,23.70426764,180.81,180.74,5.5328]
[1739827924790,55.28978381,180.81,180.73,0.063]
[1739827925776,13.41184853,180.8,180.73,0.063]
[1739827925973,18.17366764,180.74,180.73,0.063]
[1739827928180,23.70646764,180.74,180.73,0.063]
[1739827929687,37.11831617,180.74,180.73,0.063]
[1739827930094,55.29198381,180.74,180.73,0.063]
[1739827930279,56.29198381,180.74,180.67,0.063]
[1739827930465,18.17366764,180.68,180.67,0.063]
[1739827931078,31.58551617,180.68,180.67,0.063]
[1739827931892,37.12011617,180.68,180.67,0.063]
[1739827932275,38.12011617,180.68,180.67,0.063]
[1739827932791,37.12011617,180.68,180.67,0.063]
[1739827933571,13.41184853,180.67,180.66,0.063]
[1739827933771,37.12041617,180.67,180.66,0.063]
[1739827934684,40.29670583,180.67,180.66,0.063]
[1739827935181,42.83800583,180.67,180.66,0.063]
[1739827935376,1.0,180.66,180.61,0.063]
[1739827935576,31.58551617,180.64,180.61,0.063]
[1739827936095,50.75918381,180.64,180.61,0.063]
[1739827936388,49.75918381,180.64,180.61,0.063]
[1739827936592,50.75918381,180.64,180.61,0.063]
[1739827937182,56.29498381,180.64,180.61,0.063]
[1739827937377,37.12131617,180.64,180.61,0.063]
[1739827937678,18.17366764,180.64,180.61,0.063]
[1739827937883,18.17366764,180.65,180.61,0.063]
[1739827938588,18.17366764,180.64,180.61,0.063]
[1739827939299,20.0,180.68,180.61,0.063]
[1739827939474,18.17366764,180.66,180.61,0.063]
[1739827940077,18.17366764,180.68,180.62,18.17366764]
[1739827940479,18.17366764,180.69,180.63,18.23666764]
[1739827941076,18.17366764,180.74,180.68,18.17366764]
[1739827941269,18.17366764,180.75,180.69,18.17366764]
[1739827941478,18.17366764,180.76,180.7,18.17366764]
[1739827941881,18.17366764,180.76,180.69,18.17366764]
[1739827942084,18.17366764,180.75,180.69,18.17366764]
[1739827942475,18.17366764,180.71,180.68,1.6462]
[1739827942880,13.41184853,180.78,180.68,19.81986764]
[1739827943081,18.17366764,180.74,180.68,19.81986764]
[1739827943276,6.0834,180.79,180.7,18.17366764]
[1739827943490,18.17366764,180.77,180.7,18.17366764]
[1739827943984,19.17366764,180.81,180.7,18.17366764]
[1739827943985,18.17366764,180.76,180.7,18.17366764]
[1739827944293,18.17366764,180.74,180.69,5.5343]
[1739827944682,18.94294853,180.8,180.68,1.6462]
[1739827944683,18.17366764,180.72,180.68,1.6462]
[1739827944883,18.17366764,180.7,180.64,19.81986764]
[1739827945201,18.17366764,180.72,180.66,18.17366764]
[1739827945378,18.17366764,180.72,180.67,5.5349]
[1739827946299,18.17366764,180.75,180.69,18.17366764]
[1739827946498,18.17366764,180.76,180.7,18.17366764]
[1739827946795,18.17366764,180.71,180.64,1.6462]
[1739827946981,13.41184853,180.76,180.64,1.6462]
[1739827946982,18.17366764,180.69,180.64,1.6462]
[1739827947301,18.17366764,180.69,180.64,7.182]
[1739827947684,18.17366764,180.67,180.63,0.063]
[1739827947889,18.17366764,180.68,180.63,5.5991]
[1739827948400,18.17366764,180.67,180.63,0.063]
[1739827948704,18.17366764,180.68,180.66,0.063]
[1739827949307,18.17366764,180.67,180.66,0.063]
[1739827950377,23.70856764,180.67,180.66,0.063]
[1739827951302,18.17366764,180.67,180.66,0.063]
[1739827951685,23.70856764,180.67,180.66,0.063]
[1739827953383,37.12041617,180.67,180.66,0.063]
[1739827955219,43.60561617,180.67,180.63,0.063]
[1739827955380,37.12131617,180.64,180.63,0.063]
[1739827955585,23.70946764,180.64,180.63,0.063]
[1739827955798,37.12131617,180.64,180.63,0.063]
[1739827959014,55.29498381,180.64,180.63,0.063]
[1739827959407,37.12131617,180.64,180.63,0.063]
[1739827962336,13.41184853,180.63,180.61,0.063]
[1739827962537,18.17366764,180.62,180.61,0.063]
[1739827963333,31.58551617,180.62,180.61,0.063]
[1739827963630,37.12191617,180.62,180.61,0.063]
[1739827965843,20.0,180.59,180.54,1.5574]
[1739827966023,18.17366764,180.57,180.54,1.5574]
[1739827966545,38.17366764,180.59,180.54,1.5574]
[1739827967539,43.71116764,180.59,180.54,1.5574]
[1739827968255,18.17366764,180.58,180.54,1.5574]
[1739827968411,18.17366764,180.56,180.51,18.17366764]
[1739827968613,18.17366764,180.55,180.5,5.54]
[1739827968815,18.17366764,180.55,180.5,23.71366764]
[1739827969037,18.17366764,180.56,180.5,23.71366764]
[1739827969239,38.17366764,180.55,180.5,18.17366764]
[1739827969414,18.17366764,180.54,180.49,1.6023]
[1739827969726,18.17366764,180.53,180.49,1.6023]
[1739827971040,51.58551617,180.55,180.49,25.31636764]
[1739827971535,18.17366764,180.54,180.49,19.77596764]
[1739827972641,18.17366764,180.54,180.49,25.31626764]
[1739827973332,18.17366764,180.54,180.49,19.80596764]
[1739827973646,18.17366764,180.53,180.49,1.6323]
[1739827974026,18.17366764,180.54,180.49,25.34626764]
[1739827974840,18.17366764,180.54,180.49,19.80596764]
[1739827975041,18.17366764,180.53,180.49,1.6323]
[1739827977140,23.71286764,180.53,180.49,1.6323]
[1739827977336,18.17366764,180.53,180.49,1.6323]
[1739827978141,18.17366764,180.51,180.49,0.03]
[1739827978543,18.17366764,180.52,180.49,0.03]
[1739827980349,5.5392,180.53,180.49,0.03]
[1739827980530,23.71286764,180.53,180.49,0.03]
[1739827980932,5.538,180.57,180.5,18.17366764]
[1739827981253,38.17366764,180.54,180.49,18.20366764]
[1739827981426,5.538,180.57,180.49,18.20366764]
[1739827981427,18.17366764,180.53,180.49,0.03]
[1739827981629,18.17366764,180.52,180.49,0.03]
[1739827982129,18.17366764,180.53,180.49,0.03]
[1739827983245,23.71296764,180.53,180.49,0.03]
[1739827983578,13.41184853,180.54,180.49,18.20366764]
[1739827983941,18.17366764,180.54,180.49,18.20366764]
[1739827984138,18.17366764,180.58,180.52,18.17366764]
[1739827984651,11.68189587,180.58,180.52,11.68189587]
[1739827985030,11.68189587,180.59,180.53,11.68189587]
[1739827985956,11.68189587,180.59,180.54,1.5913]
[1739827986170,0.063,180.61,180.57,11.68189587]
[1739827986755,0.063,180.61,180.56,18.24284141]
[1739827987142,0.063,180.61,180.57,18.24284141]
[1739827987560,0.063,180.61,180.58,18.24284141]
[1739827987759,0.063,180.61,180.57,18.24284141]
[1739827988335,0.063,180.61,180.55,5.5386]
[1739827988336,0.063,180.61,180.55,19.3851]
[1739827988671,0.063,180.61,180.6,18.24284141]
[1739827989873,0.063,180.61,180.6,23.77984141]
[1739827991475,0.063,180.61,180.6,25.28424141]
[1739827995355,0.0001,180.61,180.6,25.28424141]
[1739827995562,0.0001,180.62,180.6,31.62884141]
[1739827995769,0.0001,180.62,180.61,19.07303669]
[1739827996146,0.0001,180.62,180.61,31.65468994]
[1739827996341,0.0001,180.62,180.61,49.89753135]
[1739827996576,0.0001,180.62,180.61,18.24284141]
[1739827997247,0.0001,180.62,180.61,23.77954141]
[1739828000158,0.0001,180.62,180.61,37.19138994]
[1739828000964,0.0001,180.62,180.61,23.77954141]
[1739828004371,0.0001,180.62,180.61,5.5367]
[1739828004678,0.0001,180.62,180.6,19.74724141]
[1739828004848,0.0001,180.62,180.6,25.28424141]
[1739828005383,0.0001,180.62,180.61,18.24284141]
[1739828005870,0.0001,180.62,180.61,23.77954141]
[1739828006579,0.0001,180.62,180.61,18.24284141]
[1739828006883,0.0001,180.62,180.6,23.77984141]
[1739828007089,0.0001,180.62,180.58,23.78024141]
[1739828007384,0.0001,180.62,180.57,23.78074141]
[1739828007549,0.0001,180.62,180.57,18.24284141]
[1739828008154,0.0001,180.62,180.57,23.78074141]
[1739828008366,0.0001,180.62,180.58,18.24284141]
[1739828008656,0.0001,180.62,180.58,11.67325326]
[1739828009378,0.0001,180.62,180.58,17.21075326]
[1739828009895,0.0001,180.62,180.6,0.063]
[1739828011078,11.67335326,180.62,180.6,0.063]
[1739828011888,11.67325326,180.61,180.6,0.063]
[1739828012099,25.08510179,180.61,180.6,0.063]
[1739828012296,11.67325326,180.61,180.6,0.063]
[1739828018506,17.20995326,180.61,180.6,0.063]
[1739828019292,30.62180179,180.61,180.6,0.063]
[1739828019806,20.0,180.58,180.5,11.67325326]
[1739828020008,11.67325326,180.57,180.51,11.67325326]
[1739828020893,11.67325326,180.57,180.49,5.5702]
[1739828021109,17.21125326,180.57,180.51,11.67325326]
[1739828021818,11.67325326,180.57,180.51,17.21295326]
[1739828022023,31.67325326,180.58,180.52,11.67325326]
[1739828022181,20.0,180.58,180.53,11.67325326]
[1739828022382,20.0,180.58,180.54,11.67325326]
[1739828022603,18.06365326,180.6,180.54,11.67325326]
[1739828022909,1.5495,180.61,180.55,11.67325326]
[1739828022910,11.67325326,180.61,180.55,11.67325326]
[1739828023078,0.0001,180.62,180.57,11.67325326]
[1739828023414,0.0001,180.62,180.58,11.67325326]
[1739828024614,0.0001,180.62,180.57,18.24218435]
[1739828025507,0.0001,180.62,180.57,23.77998435]
[1739828025928,18.24228435,180.62,180.56,18.24218435]
[1739828026137,18.24228435,180.62,180.55,25.37868435]
[1739828026417,18.24218435,180.61,180.55,19.84028435]
[1739828026717,18.24218435,180.59,180.53,23.78108435]
[1739828027629,18.24218435,180.61,180.55,18.24218435]
[1739828027929,18.24228435,180.62,180.56,18.24218435]
[1739828028714,0.0001,180.62,180.58,18.24218435]
[1739828029929,0.0001,180.62,180.58,23.77968435]
[1739828033048,0.0001,180.62,180.58,5.5375]
[1739828033234,0.0001,180.62,180.59,18.24218435]
[1739828033944,0.0001,180.62,180.58,5.5375]
[1739828034146,18.24218435,180.61,180.55,18.24218435]
[1739828034317,0.0001,180.62,180.57,18.24218435]
[1739828034519,0.0001,180.62,180.58,18.24218435]
[1739828035849,0.0001,180.62,180.58,23.77968435]
[1739828036420,0.0001,180.62,180.59,18.24218435]
[1739828036836,0.0001,180.62,180.59,23.77948435]
[1739828038145,0.0001,180.62,180.56,18.24218435]
[1739828038146,18.24228435,180.62,180.56,18.24218435]
[1739828038349,18.24218435,180.61,180.55,18.24218435]
[1739828039028,23.77898435,180.61,180.55,18.24218435]
[1739828039228,18.24218435,180.59,180.53,18.24218435]
[1739828040152,23.77928435,180.6,180.54,18.24218435]
[1739828040353,44.24968435,180.62,180.56,18.24218435]
[1739828040674,0.0001,180.62,180.57,18.24218435]
[1739828040836,18.24218435,180.61,180.55,18.24218435]
[1739828041837,43.77878435,180.62,180.56,18.24218435]
[1739828042046,38.24228435,180.62,180.56,18.24218435]
[1739828042360,20.0001,180.62,180.57,18.24218435]
[1739828044575,20.0001,180.62,180.57,23.77988435]
[1739828044755,4.32,180.61,180.58,18.24218435]
[1739828044954,0.0001,180.62,180.59,18.24218435]
[1739828045161,0.0001,180.62,180.6,18.24218435]
[1739828046740,0.0001,180.62,180.59,23.77938435]
[1739828048579,0.0001,180.62,180.59,11.67203174]
[1739828048970,0.0001,180.62,180.6,11.67203174]
[1739828049178,0.0001,180.62,180.61,11.67203174]
[1739828050358,0.0001,180.62,180.61,17.20873174]
[1739828050760,0.0001,180.62,180.61,18.03899263]
[1739828050978,0.0001,180.62,180.61,79.13896812]
[1739828051673,0.0001,180.62,180.61,18.03899263]
[1739828051979,0.0001,180.62,180.61,18.03896925]
[1739828052679,0.0001,180.62,180.61,24.59064985]
[1739828052852,0.0001,180.62,180.61,38.00249838]
[1739828053382,0.0001,180.62,180.61,23.76041234]
[1739828054179,0.0001,180.62,180.61,24.59065113]
[1739828060082,0.0001,180.62,180.61,23.76041234]
[1739828066966,0.0001,180.62,180.61,37.17226087]
[1739828067176,0.0001,180.62,180.61,57.22622446]
[1739828068075,0.03,180.67,180.64,1.0]
[1739828068387,0.0001,180.67,180.66,31.63556087]
[1739828069177,0.0001,180.67,180.66,24.58887844]
[1739828069376,0.0001,180.67,180.66,23.75891234]
[1739828069676,0.0001,180.67,180.66,18.22371234]
[1739828070178,0.0001,180.67,180.66,23.75891234]
[1739828071182,0.0001,180.67,180.66,37.17076087]
[1739828071383,0.03,180.72,180.67,14.91454853]
[1739828071591,0.03,180.72,180.71,18.22371234]
[1739828073093,6.5226,180.8,180.72,19.3669]
[1739828073264,0.063,180.8,180.78,18.22371234]
[1739828073966,0.063,180.8,180.76,18.22371234]
[1739828076496,0.063,180.8,180.74,18.22371234]
[1739828076497,18.28671234,180.8,180.74,18.22371234]
[1739828076795,18.22371234,180.75,180.69,18.22371234]
[1739828076970,18.22371234,180.74,180.68,18.22371234]
[1739828077305,18.22371234,180.75,180.69,18.22371234]
[1739828077506,23.75621234,180.75,180.69,18.22371234]
[1739828078394,18.22371234,180.73,180.67,18.22371234]
[1739828078766,18.22371234,180.75,180.69,18.22371234]
[1739828078973,18.22371234,180.76,180.7,18.22371234]
[1739828079191,26.09881234,180.77,180.71,18.22371234]
[1739828079998,31.63071234,180.77,180.71,18.22371234]
[1739828080398,26.09881234,180.77,180.71,23.75741234]
[1739828083100,26.09881234,180.77,180.71,5.5337]
[1739828083286,26.12881234,180.77,180.71,5.5337]
[1739828084601,31.66061234,180.77,180.71,5.5337]
[1739828084989,26.12881234,180.77,180.71,23.75741234]
[1739828085188,7.9051,180.77,180.72,18.22371234]
[1739828085482,7.9051,180.77,180.76,18.22371234]
[1739828085483,0.03,180.77,180.76,18.22371234]
[1739828086218,0.03,180.77,180.76,23.75581234]
[1739828086594,0.03,180.77,180.72,23.75691234]
[1739828087415,0.03,180.77,180.72,18.22371234]
[1739828087622,18.25371234,180.77,180.71,18.22371234]
[1739828087793,0.03,180.77,180.72,18.22371234]
[1739828088685,0.03,180.77,180.73,18.22371234]
[1739828089820,0.03,180.77,180.73,23.75671234]
[1739828100733,0.03,180.77,180.74,18.22371234]
[1739828101603,0.03,180.77,180.75,5.5325]
[1739828101929,0.03,180.77,180.74,23.75641234]
[1739828102711,0.03,180.77,180.74,17.18580983]
[1739828103209,0.03,180.77,180.76,11.65310983]
[1739828104130,0.03,180.77,180.72,0.82967263]
[1739828104324,11.65310983,180.76,180.71,0.063]
[1739828104906,11.68310983,180.77,180.71,17.24960983]
[1739828105107,0.03,180.77,180.75,11.65310983]
[1739828105912,0.03,180.77,180.76,11.65310983]
[1739828106830,0.03,180.77,180.71,11.71610983]
[1739828107133,11.68310983,180.77,180.71,11.71610983]
[1739828107428,17.21500983,180.77,180.71,17.24970983]
[1739828107842,11.65310983,180.76,180.71,0.063]
[1739828108345,11.65310983,180.74,180.71,0.063]
[1739828108526,5.5619,180.77,180.71,0.063]
[1739828108527,11.65310983,180.73,180.71,0.063]
[1739828108730,18.22308688,180.73,180.71,0.063]